Cogmind - Beta 13 @@@ ROGUE MODE // 2024.06.04 @ 07:37:09 Player: wd Result: Destroyed by Y-45 Defender with Heavy Assault Rifle Performance ------------- Evolutions (2) 1000 Regions Visited (4) 800 Robots Destroyed (54) 270 Value Destroyed (1593) 1593 Prototype IDs (2) 40 Alien Tech Used (0) 0 Bonus (-147) -147 TOTAL SCORE: 3556 Bonus ------- Friendly Fire -147 Cogmind --------- Core Integrity 0/550 Matter 159/300 Energy 100/100 System Corruption 0% Temperature Cool (9) Movement Core (200) Ox3 Location -8/Materials Parts ------- > --- POWER (2) -------- (None) > --- PROPULSION (3) --- (None) > --- UTILITY (4) ------ Medium Storage Unit Advanced Terrain Scan Processor > --- WEAPON (2) ------- (None) > --- INVENTORY (10) --- Light Ion Engine Light Angular Momentum Engine Aluminum Leg Aluminum Leg Heat Sink Compact Matter Pod (150) Seismic Detector Improved Assault Rifle Peak State ------------ > --- POWER ------------ Light Nuclear Core Light Angular Momentum Engine > --- PROPULSION ------- Aluminum Leg Aluminum Leg Aluminum Leg > --- UTILITY ---------- Medium Storage Unit Advanced Terrain Scan Processor ECM Suite Improved Shield Generator > --- WEAPON ----------- Improved Assault Rifle Improved Light Cannon > --- INVENTORY -------- Light Ion Engine Nuclear Core Aluminum Leg Aluminum Leg Heat Sink Compact Matter Pod Seismic Detector Improved Shield Generator Improved Assault Rifle Mini Grenade Launcher [Rating: 28] Favorites ----------- Power Light Ion Engine Engine Light Ion Engine Power Core Light Nuclear Core Propulsion Aluminum Leg Leg Aluminum Leg Wheel Compact Wheel Flight Unit Flight Unit Utility Medium Storage Unit Device ECM Suite Storage Medium Storage Unit Processor Visual Processing Unit Protection Light Armor Plating Weapon Light Assault Rifle Energy Gun Medium Laser Ballistic Gun Light Assault Rifle Ballistic Cannon Improved Light Cannon Launcher Mini Grenade Launcher Slashing Weapon Mining Claw Build | -11 -10 -9 -9 -8 ------- Run | Yrd Mat Mat Min Mat Slots Evolved 4 | . . 2 . 2 Power 1 | . . . . 1 Propulsion 1 | . . 1 . . Utility 2 | . . 1 . 1 Weapon . | . . . . . Parts Attached 58 | 7 21 19 2 9 Power 15 | 1 6 4 . 4 Engine 9 | 1 5 2 . 1 Core 6 | . 1 2 . 3 Reactor . | . . . . . Propulsion 14 | 2 7 4 . 1 Treads . | . . . . . Leg 9 | . 4 4 . 1 Wheel 2 | 2 . . . . Hover . | . . . . . Flight 3 | . 3 . . . Utility 14 | 1 4 4 2 3 Device 6 | . 1 1 2 2 Storage 4 | 1 2 1 . . Processor 3 | . 1 1 . 1 Hackware . | . . . . . Protection 1 | . . 1 . . Artifact . | . . . . . Weapon 15 | 3 4 7 . 1 Energy Gun 2 | 1 1 . . . Energy Cannon . | . . . . . Ballistic Gun 9 | 2 2 5 . . Ballistic Cannon 2 | . . 2 . . Launcher 1 | . . . . 1 Special Weapon . | . . . . . Impact Weapon . | . . . . . Slashing Weapon 1 | . 1 . . . Piercing Weapon . | . . . . . Special Melee Weapon . | . . . . . Unidentified Prototypes 2 | . . 2 . . Parts Lost 17 | . 1 5 1 10 Power 3 | . . 1 . 2 Propulsion 5 | . 1 1 . 3 Utility 7 | . . 3 1 3 Weapon 2 | . . . . 2 Highest Loss Streak 9 | . 1 3 1 9 To Critical Strikes . | . . . . . Average Slot Usage (%) 95 | . 96 97 98 88 Engine 7 | . 14 4 11 5 Core 4 | . . 6 . 10 Leg 25 | . 10 32 33 23 Flight 3 | . 14 . . . Device 10 | . 12 3 19 15 Storage 9 | . 6 11 11 9 Processor 7 | . 7 8 . 9 Protection 3 | . . 7 . . Ballistic Gun 15 | . 27 15 11 7 Ballistic Cannon 5 | . . 6 11 7 Naked Turns . | . . . . . Heaviest Build 37 | 12 19 25 26 37 Greatest Support 32 | 32 32 30 30 30 Greatest Overweight (x) 3 | 2 1 1 . 3 Average Overweight (x) . | . . . . 1 Largest Inventory Capacity 10 | 8 10 10 10 10 Average Capacity 9 | 6 6 9 10 10 Most Carried 10 | 3 7 10 10 10 Average Carried 7 | 1 3 8 7 9 Final Capacity 10 | 8 5 10 10 10 Final Carried 10 | 3 5 7 10 8 Class Distribution -------------------- 80% | Scavenger-Mutant 19% | Mutant Dominant Class ---------------- Mutant | -10/Materials Scavenger-Mutant | -9/Materials Scavenger-Mutant | -9/Mines Scavenger-Mutant | -8/Materials Resources | -11 -10 -9 -9 -8 ----------- Run | Yrd Mat Mat Min Mat Matter Collected 1457 | 198 227 611 172 249 Remotely . | . . . . . Salvage Created 1722 | . 192 824 68 638 Parts 134 | . 18 68 5 43 Haulers Intercepted 1 | . . 1 . . Recyclers Shooed . | . . . . . Parts Field Recycled . | . . . . . Retrieved Matter . | . . . . . Parts Self-Destructed . | . . . . . Prevented . | . . . . . Kills | -11 -10 -9 -9 -8 ------- Run | Yrd Mat Mat Min Mat Combat Hostiles Destroyed 44 | . 6 20 4 14 Guns 26 | . 6 14 4 2 Cannons 15 | . . 6 . 9 AOE 3 | . . . . 3 Classes Destroyed 10 | . 4 4 . 2 Worker 2 | . 1 . . 1 Builder 1 | . . 1 . . Tunneler 1 | . . . . 1 Hauler 1 | . . 1 . . Watcher 4 | . 1 2 . 1 Swarmer 11 | . 3 4 4 . Grunt 20 | . 3 9 . 8 Brawler 2 | . . 2 . . Sentry 10 | . . 5 . 5 Hunter 1 | . . . . 1 Thug 1 | . . . . 1 Best Kill Streak 7 | . 4 5 4 7 Combat Bots Only 5 | . 3 4 4 5 Max Kills in Single Turn 2 | . 2 2 1 2 Gunslinging 1 | . 1 1 . . Exploded 1 | . . . . 1 Melee . | . . . . . Uniques/NPCs Destroyed . | . . . . . Combat | -11 -10 -9 -9 -8 -------- Run | Yrd Mat Mat Min Mat Hostile Shots Fired 301 | . 53 84 21 143 Missed 84 | . 12 31 7 34 Damage Taken 3029 | . 392 1071 110 1456 Core 998 | . 109 296 35 558 Absorbed by Shields 279 | . . . . 279 Core Remaining (%) 57 | 100 56 . 17 . Volleys Fired 144 | . 30 61 9 44 Largest 2 | . 2 2 2 2 Hottest 69 | . 40 62 62 69 Shots Fired 279 | . 60 123 19 77 Gun 197 | . 60 97 9 31 Cannon 72 | . . 26 10 36 Launcher 10 | . . . . 10 Special . | . . . . . Kinetic 269 | . 60 123 19 67 Thermal . | . . . . . Explosive 10 | . . . . 10 Electromagnetic . | . . . . . Robot Hit Streak 13 | . 9 6 3 13 Robot Miss Streak 6 | . 5 6 3 3 Penetration Max . | . . . . . Secondary Targets 4 | . 2 2 . . Max Gunslinging Chain 1 | . 1 1 . . Shots Hit Robots 165 | . 38 70 6 51 Core Hits 90 | . 18 39 4 29 Critical Kills . | . . . . . Critical Parts Destroyed . | . . . . . Critical Strikes . | . . . . . Melee Attacks 2 | . 2 . . . Impact . | . . . . . Slashing 2 | . 2 . . . Piercing . | . . . . . Sneak Attacks . | . . . . . Combat Hostiles . | . . . . . Follow-up Attacks . | . . . . . Damage Inflicted 2625 | . 295 924 100 1306 Guns 1287 | . 292 588 77 330 Cannons 964 | . . 326 23 615 Explosions 361 | . . . . 361 Melee . | . . . . . Ramming 13 | . 3 10 . . Kinetic 2251 | . 292 914 100 945 Thermal . | . . . . . Explosive 361 | . . . . 361 Electromagnetic . | . . . . . Impact . | . . . . . Slashing . | . . . . . Piercing . | . . . . . Highest Corruption 13 | . . 13 13 . Average Corruption 8 | . . 6 13 . Corruption Purged . | . . . . . Corruption Blocked . | . . . . . Effects 44 | . . 26 18 . Message Errors 18 | . . 10 8 . Matter Fused 6 | . . 4 2 . Heat Flow Errors 3 | . . 1 2 . Energy Discharges 4 | . . 3 1 . Data Loss (minor) 5 | . . 4 1 . Data Loss (major) 2 | . . 1 1 . Misfires 3 | . . 2 1 . Alerts 2 | . . . 2 . Weapon Failures 1 | . . 1 . . Overload Shots . | . . . . . Overflow Damage 3 | . . . . 3 Projectiles . | . . . . . Explosions 3 | . . . . 3 Melee . | . . . . . Knockbacks 8 | . . . . 8 Impact . | . . . . . Kinetic 7 | . . . . 7 Secondary 1 | . . . . 1 Self-Inflicted Damage 108 | . 1 . . 107 Shots 5 | . . . . 5 Rammed 1 | . 1 . . . Targets Rammed 3 | . 1 2 . . Kicked 2 | . . 2 . . Crushed . | . . . . . Highest Temperature 191 | . 30 102 191 148 Average Temperature 31 | . 12 18 89 38 Received Heat Transfer 859 | . 138 150 6 565 Siege Activations . | . . . . . Robots Corrupted . | . . . . . Combat Hostiles . | . . . . . Parts Fried . | . . . . . Impact Corruptions . | . . . . . Robots Melted . | . . . . . Combat Hostiles . | . . . . . Parts Melted . | . . . . . Heat Transferred . | . . . . . Parts Sabotaged . | . . . . . Parts Stolen . | . . . . . Parts Stripped . | . . . . . Power Chain Reactions . | . . . . . Alert | -11 -10 -9 -9 -8 ------- Run | Yrd Mat Mat Min Mat Peak Influence 267 | . 147 243 190 267 Initial 94 | . . 14 94 . Average 96 | . 50 108 146 97 Maximum Alert Level 1 | . . 1 . 1 Low Security (%) 91 | 100 100 85 100 85 Level 1 8 | . . 14 . 14 Level 2 . | . . . . . Level 3 . | . . . . . Level 4 . | . . . . . Level 5 . | . . . . . High Security . | . . . . . Max Security . | . . . . . Squads Dispatched 11 | . 1 5 1 4 Investigation 4 | . . 3 1 . Extermination . | . . . . . Reinforcement 4 | . 1 2 . 1 Assault . | . . . . . Garrison 3 | . . . . 3 Intercept . | . . . . . Searches Triggered . | . . . . . Construction Impeded 2 | . . 1 . 1 Haulers Reinforced . | . . . . . Active Scanning Responses . | . . . . . Cargo Convoy Interrupts . | . . . . . Stealth | -11 -10 -9 -9 -8 --------- Run | Yrd Mat Mat Min Mat Distress Signals 9 | . 1 1 . 7 Communications Jammed . | . . . . . Distress Signals . | . . . . . Times Spotted 87 | . 18 37 7 25 Peak Tracking Total 6 | . 4 5 4 6 Tactical Retreats 10 | . 3 3 1 3 Traps | -11 -10 -9 -9 -8 ------- Run | Yrd Mat Mat Min Mat Traps Triggered 2 | . . 1 . 1 Indirectly . | . . . . . Trap Hack Attempts . | . . . . . Triggered . | . . . . . Disarmed . | . . . . . Reprogrammed . | . . . . . Reused . | . . . . . Traps Extracted . | . . . . . Installed . | . . . . . Triggered . | . . . . . Machines | -11 -10 -9 -9 -8 ---------- Run | Yrd Mat Mat Min Mat Machines Disabled 2 | . . 1 . 1 Max in Single Turn 1 | . . 1 . 1 Machines Repaired . | . . . . . Machines Dismantled . | . . . . . Machines Sabotaged . | . . . . . Overloaded Fab Kills . | . . . . . Hacking | -11 -10 -9 -9 -8 --------- Run | Yrd Mat Mat Min Mat Machines Accessed 11 | . 4 5 1 1 Terminals 8 | . 4 4 . . Fabricators . | . . . . . Repair Stations . | . . . . . Recycling Units . | . . . . . Scanalyzers 1 | . . 1 . . Garrison Access 1 | . . . . 1 Total Hacks 20 | . 6 12 1 1 Successful 9 | . 4 4 1 . Failed 11 | . 2 8 . 1 Catastrophic 1 | . . 1 . . Database Lockouts . | . . . . . Manual . | . . . . . Terminals 16 | . 6 10 . . Fabricators . | . . . . . Repair Stations . | . . . . . Recycling Units . | . . . . . Scanalyzers 2 | . . 2 . . Garrison Access 1 | . . . . 1 Terminal Hacks 9 | . 4 4 1 . Record 5 | . 4 1 . . Open Door 1 | . . . 1 . Alert Level 1 | . . 1 . . Unreport Threat 1 | . . 1 . . Zone Layout 1 | . . 1 . . Fabricator Hacks . | . . . . . Repair Station Hacks . | . . . . . Recycling Unit Hacks . | . . . . . Scanalyzer . | . . . . . Garrison Access Hacks . | . . . . . Unauthorized Hacks . | . . . . . Terminals . | . . . . . Fabricators . | . . . . . Repair Stations . | . . . . . Recycling Units . | . . . . . Scanalyzers . | . . . . . Garrison Access . | . . . . . Data Cores Recovered . | . . . . . Used . | . . . . . Hacking Detections 7 | . 2 4 . 1 Full Trace Events 2 | . . 2 . . Feedback Events . | . . . . . Feedback Blocked . | . . . . . Robot Schematics Acquired . | . . . . . Robots Built . | . . . . . Authchips . | . . . . . Time . | . . . . . Total Robot Build Rating . | . . . . . Part Schematics Acquired . | . . . . . Parts Built . | . . . . . Authchips . | . . . . . Time . | . . . . . Total Part Build Rating . | . . . . . Parts Repaired . | . . . . . Time . | . . . . . Parts Recycled . | . . . . . Recycled Matter . | . . . . . Retrieved Matter . | . . . . . Retrieved Components . | . . . . . Parts Scanalyzed . | . . . . . Part Schematics Acquired . | . . . . . Parts Damaged . | . . . . . Bothacking | -11 -10 -9 -9 -8 ------------ Run | Yrd Mat Mat Min Mat Used RIF Installer . | . . . . . Robots Hacked . | . . . . . Non-combat . | . . . . . Combat . | . . . . . Robot Hacks Applied . | . . . . . Relay Couplers Released . | . . . . . Fabnet Peak Effective % . | . . . . . Robots Rewired . | . . . . . Allies Hacked . | . . . . . Hacks Repelled . | . . . . . Allies | -11 -10 -9 -9 -8 -------- Run | Yrd Mat Mat Min Mat Total Allies . | . . . . . Largest Group . | . . . . . Highest-Rated Group . | . . . . . Highest-Rated Ally . | . . . . . Total Orders . | . . . . . Ally Attacks . | . . . . . Total Damage . | . . . . . Kills . | . . . . . Allies Corrupted . | . . . . . Allies Melted . | . . . . . Intel | -11 -10 -9 -9 -8 ------- Run | Yrd Mat Mat Min Mat Robot Analysis Total . | . . . . . Derelict Logs Recovered 1 | . . . 1 . Drone Launches . | . . . . . Drone Recoveries . | . . . . . Exploration | -11 -10 -9 -9 -8 ------------- Run | Yrd Mat Mat Min Mat Turns Passed 3065 | 87 685 1159 497 637 Spaces Moved 1981 | 70 651 722 304 234 Core 48 | 25 . . . 23 Treads . | . . . . . Legs 1406 | . 169 722 304 211 Wheels 73 | 45 28 . . . Hover . | . . . . . Flight 454 | . 454 . . . Fastest Speed 37 | 50 37 120 120 120 Average Speed 114 | 101 80 120 120 185 Slowest Speed 200 | 150 120 190 120 200 Overloaded Moves . | . . . . . Propulsion Burnouts . | . . . . . Robots Hopped 5 | . 5 . . . Cave-ins Triggered 1 | . . 1 . . Exploration Rate (%) 33 | 5 39 53 54 18 Regions Visited 4 Branch Regions 1 Pre-discovered Areas 1 | . . . 1 . Known Exits Taken . | . . . . . Unknown Exits Taken 4 | 1 1 1 1 . Scrap Searched 1 | . . . 1 . Spaces Dug 1 | . 1 . . . Terrain Destroyed 49 | . 1 2 1 45 Melee 1 | . 1 . . . Projectile 4 | . . 2 1 1 AOE 44 | . . . . 44 Terrain Rammed . | . . . . . Walls Destroyed . | . . . . . Machines Disabled . | . . . . . Actions | -11 -10 -9 -9 -8 --------- Run | Yrd Mat Mat Min Mat Total 2519 | 85 752 906 417 359 Wait 260 | . 23 70 99 68 Move 1967 | 69 640 721 303 234 Hop 5 | . 5 . . . Pick Up 54 | 9 17 21 4 3 Fast Attach . | . . . . . Attach 20 | 6 2 7 1 4 Detach . | . . . . . Swap 38 | 1 19 12 1 5 Drop 26 | . 13 12 . 1 Fire 144 | . 30 61 9 44 Melee 2 | . 2 . . . Ram 1 | . 1 . . . Kick 2 | . . 2 . . Crush . | . . . . . Escape Stasis . | . . . . . Rewire . | . . . . . Trap . | . . . . . Miscellaneous . | . . . . . Route ------- -11/Scrapyard -10/Materials -9/Materials -9/Mines -8/Materials History --------- Turn | Location | Event 5 | -11/Scrapyard | Discovered new exit (range 16) 88 | -11/Scrapyard | Entered Materials 307 | -10/Materials | Build established: Mutant 731 | -10/Materials | Discovered new exit (range 5) 773 | -10/Materials | Entered another Materials area 773 | -9/Materials | Evolved 2 slots: Propulsion x1, Utility x1 936 | -9/Materials | Build established: Scavenger-Mutant 1736 | -9/Materials | Crushed by falling debris 1736 | -9/Materials | Core integrity fell below 50% 1736 | -9/Materials | System corruption reached 10% 1767 | -9/Materials | Lost 3 parts (1p1n1u) 1913 | -9/Materials | Discovered new exit (range 7) 1932 | -9/Materials | Entered Mines 2129 | -9/Mines | Learned location of Zion (-6) 2189 | -9/Mines | Discovered new exit (range 13) 2209 | -9/Mines | Met a Derelict shopkeep closing up shop 2213 | -9/Mines | Core integrity fell below 20% 2429 | -9/Mines | Entered Materials 2429 | -8/Materials | Evolved 2 slots: Power x1, Utility x1 2990 | -8/Materials | Core integrity fell below 50% 3023 | -8/Materials | Core integrity fell below 20% 3044 | -8/Materials | Lost 9 parts (2p3n2u2w) 3066 | -8/Materials | Destroyed by Y-45 Defender with Heavy Assault Rifle Last Messages --------------- Critical hit (Burn: +37). Aluminum Leg destroyed. G-47 Trooper destroyed. Critical hit (Burn: +37). The unstable cave ceiling collapses. W-25 Informer sends out distress signal. Y-45 Defender destroyed. K-01 Serf collects debris. U-05 Engineer builds a Wall. K-01 Serf collects debris. U-05 Engineer lays Concrete. K-01 Serf collects debris. U-05 Engineer builds a Wall. K-01 Serf collects debris. U-05 Engineer lays Concrete. The unstable cave ceiling collapses. Mni. Grenade Launcher destroyed. Critical hit (Burn: +37). K-01 Serf collects debris. The unstable cave ceiling collapses. Map ----- +----------------------------------------------------+ | ???###+########## # %=[## # #????????? | | ?????# #????????# # [%*!## = / """""???????????? | | ?????# #????????# # ! != # """""???????????? | | ###### #????????# # """ %=%* # """""???????????? | | """ # #????????? # """ # ???????????? | | "R" # #?########+# """ = # """"" ??????????? | | " " # #?# # #*""""" ??????????? | | # #?# """ # ! ! #%"""""???????????? | | # ### """ ####### #=?? ????????????? | | """ # # """ #### ### #?????????????????? | | """ + / # # #?????????????????? | | """ # # """ # !! #?????????????????? | | # # """ ! ##????????????????? | | """ # # """ #????????????????? | | """ # # ! # #????????????????? | | """ # ########## #????????????????? | | #####???????# ##????????????????? | | ######??????????# """ #????????????????? | | ????????????????## "S ##????????????????? | | ?????????????????## """ #?????????????????? | | ??????????????????# "" # #?????????????????? | | ??????????????????#/ " #?????????????????? | | ??????????????????##########;######??????????????? | | ???????????????????# Y #??????????????? | | ???????????????????# #??????????????? | | ???????????????????# @ #??????????????? | | ???????????????????# """ !!! #??????????????? | | ???????????????????# """ !!! #??????????????? | | ???????????????????# """ !!! #??????????????? | | ???????????????????# #??????????????? | | ???????????????????# ! #??????????????? | | ???????????????????################??????????????? | | | | | | | | | | | | | | | | | | | | | | | | | | | | | | | | | | | | | +----------------------------------------------------+ Best States ------------- Heat Dissipation 31 Energy Generation 27 Energy Capacity 300 Matter Stores 300 Matter Capacity 300 Sight Range 18 Terrain Scan Density 210 ECM Strength 1 Armor Coverage 150 Evasion (%) 62 Item Schematics ----------------- None Robot Schematics ------------------ None Fabricated ------------ Nothing Alien Tech Used ----------------- None Achievements -------------- None Challenges ------------ None Game ------ Seed AuthchipSpectralDetonator Manual? 0 Play Time 00:50:59 Cumulative 8.9 hours Start 2024.06.04 @ 05:48:20 End 2024.06.04 @ 07:37:09 Sessions 1 Manual Loads 0 Difficulty Rogue Special Mode None Game No. 9 Rogue 9 Adventurer 0 Explorer 0 Win Type - Total 0 Types 0/0/0/0/0/0/0/0/0 Lore% 6 Gallery% 10 Achievement% 13 Wizard Run 0 Options --------- Layout 1 ASCII 0 Keyboard 1 Movement Numpad Keybinds 0 Fullscreen 1 Font 32/SmallcapsGlow Map View 50x35 Zoom Use 0% Tactical HUD 0 Map Filters NONE Filters NONE Steam 1 RUN: a193c355-40e3-4e06-a842-bcf240e4d257